[Event "US Masters 2022"]
[Site "Charlotte"]
[Date "2022.11.26"]
[Round "6.19"]
[White "Nagy, Gabor"]
[Black "Rodriguez Garcia, Victor"]
[Result "1/2-1/2"]
[ECO "E62"]
[WhiteElo "2482"]
[BlackElo "2350"]
[Annotator "TA"]
[PlyCount "86"]
[EventDate "2022.11.23"]
[EventType "swiss"]
[EventCountry "USA"]
[SourceTitle "playchess.com"]
[Source "ChessBase"]
[SourceQuality "1"]
[TimeControl "5400+30"]

{[%evp 20,86,15,0,0,-7,0,-12,0,0,0,0,30,17,72,69,195,199,214,209,285,293,290,271,256,204,212,205,210,131,146,145,154,90,88,57,43,22,92,96,106,110,110,82,266,255,392,0,0,0,0,-117,-119,-128,-152,-162,-154,-177,-175,-275,-270,-260,-106,-180,0,-246,0,-174,0]} 1. d4 {[%emt 0:01:30]} d6 {[%emt 0:03:24]} 2. Nf3 {[%emt 0:00:58]} Nf6 {[%emt 0:00:06]} 3. c4 {[%emt 0:00:57]} g6 {[%emt 0:00:17]} 4. g3 {[%emt 0:00:25]} Bg7 {[%emt 0:00:14]} 5. Bg2 {[%emt 0:00:08]} O-O {[%emt 0:00:08]} 6. Nc3 {[%emt 0:00:15]} c6 {[%emt 0:06:05]} 7. O-O {[%emt 0:00:47]} Bf5 {[%emt 0:01:32]} 8. Nh4 {[%emt 0:06:12]} Be6 {[%emt 0:02:15]} 9. d5 {[%emt 0:00:30]} cxd5 {[%emt 0:01:42]} 10. cxd5 {[%emt 0:00:09]} Bd7 {[%emt 0:01:03]} 11. h3 {[%emt 0:00:10]} Na6 {[%emt 0:00:28] E62: King's Indian: Fianchetto: 6...c6 and Panno Variation (6...Nc6) without ...a6.} 12. Be3 {[%emt 0:00:42]} b5 {[%emt 0:05:05]} 13. a3 {[%emt 0:02:24]} Qc8 {[%emt 0:15:09] The position is equal.} 14. Kh2 {[%emt 0:06:03]} Qb7 {[%emt 0:01:45]} 15. Bd4 {[%emt 0:02:27] [#]} Rfc8 $146 {[%emt 0:02:51]} ({Predecessor:} 15... b4 16. axb4 Nxb4 17. e4 Rfc8 18. f4 Rc4 19. e5 Nfxd5 20. b3 Rcc8 21. Nxd5 Nxd5 {½-½ (34) Solozhenkin,E (2500)-Nouro,M (2320) Jyvaskyla 1998}) 16. e4 {[%emt 0:00:33][%cal Be2e4,Be4e5][%mdl 32]} Rc4 {[%emt 0:08:56]} (16... Nc5 $11 {keeps the balance.}) 17. Nf3 $16 {[%emt 0:00:55]} Be8 {[%emt 0:02:30]} (17... Re8 $14) 18. e5 $18 {[%emt 0:03:04]} Nd7 {[%emt 0:06:53][%cal Rd6e5]} 19. exd6 {[%emt 0:09:25]} Bxd4 {[%emt 0:06:35]} 20. Nxd4 {[%emt 0:00:21]} exd6 {[%emt 0:00:33]} 21. Ncxb5 {[%emt 0:00:42][%cal Bc3b5,Bb5a3,Ba3c4,Bc4d6][%mdl 32]} ({Resist} 21. Ndxb5 $6 Qb8 22. Rc1 Ne5 $18) 21... Qb6 {[%emt 0:01:07]} 22. b3 {[%emt 0:00:12]} Rc5 {[%emt 0:02:01]} 23. a4 {[%emt 0:01:37]} Nf6 {[%emt 0:03:55]} 24. Na3 {[%emt 0:06:06]} Nb4 {[%emt 0:04:39][%cal Oa8b8]} 25. Nc4 {[%emt 0:00:13]} Qd8 {[%emt 0:00:06]} 26. Re1 {[%emt 0:03:07]} (26. f4 $142) 26... Rb8 {[%emt 0:00:39]} 27. Qf3 {[%emt 0:03:36]} Nbxd5 {[%emt 0:02:17]} 28. g4 {[%emt 0:04:39]} h6 {[%emt 0:02:57]} (28... Nb6 $11 {remains equal.}) 29. Qg3 $16 {[%emt 0:00:59] White is much more active.} Qc7 {[%emt 0:04:37]} 30. Nxd6 {[%emt 0:02:27]} Bd7 {[%emt 0:01:58]} 31. Rad1 {[%emt 0:02:14]} Rc3 $2 {[%emt 0:02:37]} (31... a6 $16) 32. Qe5 $18 {[%emt 0:00:42]} Bxg4 {[%emt 0:04:58]} (32... Rc5 $142 33. Kg1 a6) 33. Bxd5 $2 {[%emt 0:00:21] The board is on fire.} (33. N4b5 $1 $18 {[%cal Rb5c7]} Rxb5 34. axb5) 33... Rxh3+ $11 {[%emt 0:01:00][%cal Bc3h3,Bh3h5,Bh5g5][%mdl 32]} 34. Kg2 {[%emt 0:01:14]} Nxd5 {[%emt 0:00:30]} 35. Qxd5 {[%emt 0:03:25]} (35. Rc1 $1 $11 {was the only way to keep the balance.} Rh5 36. Rxc7 Rxe5 37. Rxe5 Nxc7 38. Re7) 35... Rh5 $1 $36 {[%emt 0:00:18][%mdl 2048] Black is really pushing.} 36. Qc6 {[%emt 0:00:31]} Qxc6+ {[%emt 0:00:32]} 37. Nxc6 {[%emt 0:00:03] Pair of Knights!} Rxb3 {[%emt 0:00:33]} 38. Ne7+ {[%emt 0:10:28]} Kf8 $1 {[%emt 0:01:10][%mdl 1024] aiming for ...Bf3+. Black has strong compensation.} 39. Rd4 {[%emt 0:01:51]} (39. Nxg6+ $142 fxg6 40. Rc1 Bh3+ 41. Kg1 Rg5+ 42. Kh2) 39... Bf3+ $19 {[%emt 0:03:26]} 40. Kg3 {[%emt 0:00:06][%cal Oe7g6] Threatens to win with Nxg6+!} Rg5+ {[%emt 0:01:29]} (40... Bc6+ $1 $19 {is more deadly.} 41. Re3 Rxe3+ 42. fxe3 Kxe7 43. Nc8+ Kf8 44. Nxa7 Be8) 41. Kh2 {[%emt 0:03:01] [#]} (41. Kh4 $17 {was worth a try.}) 41... Rh5+ {[%emt 0:00:07]} (41... Rg2+ $142 $1 42. Kh3 Rxf2 43. Nxg6+ Kg7) 42. Kg3 {[%emt 0:00:06][%cal Oe7g6] Nxg6+! is the strong threat.} Rg5+ {[%emt 0:00:01]} 43. Kh2 $1 {[%emt 0:00:08][%cal Oe7g6] [#]} Rh5+ $2 {[%emt 0:00:01] Weighted Error Value: White=0.32/Black=0.49} ({Better is} 43... Rg2+ $1 $19 44. Kh3 Rxf2 45. Nxg6+ Kg7 46. Nf5+ Kxg6 47. Nh4+ Kg7) 1/2-1/2

[Event "US Masters 2022"]
[Site "Charlotte"]
[Date "2022.11.26"]
[Round "6.20"]
[White "Neef, Maximilian"]
[Black "Zapata, Alonso"]
[Result "1-0"]
[ECO "D00"]
[WhiteElo "2481"]
[BlackElo "2336"]
[Annotator "TA"]
[PlyCount "75"]
[EventDate "2022.11.23"]
[EventType "swiss"]
[EventCountry "USA"]
[SourceTitle "playchess.com"]
[Source "ChessBase"]
[SourceQuality "1"]
[TimeControl "5400+30"]

{[%evp 9,75,0,0,-12,4,0,1,4,0,0,0,12,0,-6,0,0,0,0,0,-5,7,4,21,15,21,0,0,-15,33,-29,-24,-37,-36,-29,-31,-27,-27,-25,-26,-29,0,0,0,0,-6,-4,0,-4,0,0,60,66,381,373,373,371,371,366,393,395,395,260,385,378,987,934,778,698]} 1. d4 {[%emt 0:00:03]} Nf6 {[%emt 0:01:47]} 2. Nc3 {[%emt 0:00:18]} d5 {[%emt 0:02:23]} 3. Bf4 {[%emt 0:00:08]} g6 {[%emt 0:01:01]} 4. e3 {[%emt 0:00:12]} Bg7 {[%emt 0:00:11]} 5. Nb5 {[%emt 0:00:30]} Na6 {[%emt 0:00:36]} 6. h3 {[%emt 0:00:14] D00: 1 d4 d5: Unusual lines.} c6 {[%emt 0:01:46]} 7. Nc3 {[%emt 0:00:10]} Nc7 {[%emt 0:00:13]} 8. Bd3 {[%emt 0:03:46] The position is equal.} O-O {[%emt 0:03:35]} 9. Nf3 {[%emt 0:00:17][%cal Bg1f3,Bf3e5,Be5c4][%mdl 32]} Nce8 {[%emt 0:03:48]} 10. O-O {[%emt 0:11:52]} Nd6 {[%emt 0:01:29]} 11. Ne5 {[%emt 0:07:29] [#]} Nfe4 $146 {[%emt 0:01:25]} ({Predecessor:} 11... Bf5 12. a4 Bxd3 13. cxd3 Nd7 14. b4 f6 15. Nxd7 Qxd7 16. Qb3 e5 17. dxe5 fxe5 {0-1 (50) Shimanov,A (2581)-Gabrielian,A (2480) Chess.com INT 2022}) 12. Nxe4 {[%emt 0:07:04]} dxe4 {[%emt 0:03:27]} 13. Be2 {[%emt 0:00:09]} Be6 {[%emt 0:02:00]} 14. b3 {[%emt 0:03:16]} g5 {[%emt 0:04:11]} 15. Bh2 {[%emt 0:02:32]} (15. Bxg5 f6 16. Bg4 Bc8 17. Nxc6 (17. Bxc8 $2 Qxc8 18. Bh4 Nf5 $17) 17... bxc6 $17) 15... f6 {[%emt 0:00:20][%cal Bf7f6,Bf6f5,Bf5f4][%mdl 32]} 16. Nc4 {[%emt 0:01:49]} f5 {[%emt 0:02:31]} 17. Rb1 {[%emt 0:13:20]} f4 {[%emt 0:14:39][%cal Of4f3]} 18. Bg4 {[%emt 0:06:44] Prevents f3.} Qd7 {[%emt 0:04:46]} (18... Bxc4 19. bxc4 e5 20. dxe5 Bxe5 21. c5 $16) (18... Qc8 $11) 19. Bxe6+ {[%emt 0:03:51]} (19. Ne5 $1 $14 Qc8 20. exf4) 19... Qxe6 $11 {[%emt 0:01:23]} 20. Qg4 {[%emt 0:00:12] Against f3} Qxg4 {[%emt 0:02:57]} 21. hxg4 {[%emt 0:00:06]} Nb5 {[%emt 0:46:32] Prevents c3.} 22. Rbe1 {[%emt 0:09:25][%cal Bb1e1,Be1e2,Be2a2,Ba2a7][%mdl 32]} Nc3 {[%emt 0:00:00]} 23. Nd2 {[%emt 0:00:18]} Rad8 {[%emt 0:00:00]} (23... Nxa2 24. Nxe4 fxe3 25. Rxe3 $14 (25. fxe3 Nb4 $11)) 24. Nb1 {[%emt 0:00:51]} Nxa2 {[%emt 0:00:00]} 25. c3 {[%emt 0:00:51] [#] Against Nb4. Re2 is the strong threat.} e5 {[%emt 0:00:00]} 26. Re2 {[%emt 0:03:12]} fxe3 {[%emt 0:00:00]} 27. Rxa2 {[%emt 0:01:48]} exd4 {[%emt 0:00:00]} 28. fxe3 {[%emt 0:07:40]} dxc3 {[%emt 0:00:00] And now ...Rxf1+ would win.} 29. Rc1 {[%emt 0:01:10]} b5 {[%emt 0:01:57]} ({Black should try} 29... Rd3 $11) 30. Bc7 $1 $14 {[%emt 0:03:40]} b4 $2 {[%emt 0:01:33][%mdl 8192] A mistake that costs the game.} 31. Bxd8 $18 {[%emt 0:02:58]} (31. Rxa7 Rf7 32. Rb7 (32. Bxd8 Rxa7 33. Bxg5 c5 $17) 32... Rdf8 $19) 31... Rxd8 {[%emt 0:00:00]} 32. Rxa7 {[%emt 0:00:49]} Be5 {[%emt 0:00:08]} 33. Ra5 {[%emt 0:01:30]} Rd5 {[%emt 0:01:29]} 34. Rxd5 {[%emt 0:00:31]} cxd5 {[%emt 0:00:04]} 35. Kf1 {[%emt 0:00:08] Threatens to win with Ke1.} d4 {[%emt 0:01:11]} (35... Kf7 {might work better.} 36. Ke2 h6) 36. exd4 {[%emt 0:00:11]} Bf4 {[%emt 0:00:00]} (36... Bxd4 37. Rd1 c2) 37. Rc2 {[%emt 0:00:16]} Kf7 {[%emt 0:00:01] [#]} 38. Nxc3 $1 {[%emt 0:00:19] Weighted Error Value: White=0.11 (very precise) /Black=0.32} 1-0

[Event "US Masters 2022"]
[Site "Charlotte"]
[Date "2022.11.26"]
[Round "6.21"]
[White "Korley, Kassa"]
[Black "Malicka, Maria"]
[Result "1/2-1/2"]
[ECO "A13"]
[WhiteElo "2451"]
[BlackElo "2275"]
[Annotator "TA"]
[PlyCount "75"]
[EventDate "2022.11.23"]
[EventType "swiss"]
[EventCountry "USA"]
[SourceTitle "playchess.com"]
[Source "ChessBase"]
[SourceQuality "1"]
[TimeControl "5400+30"]

{[%evp 17,75,15,30,18,15,21,45,35,49,19,42,-27,-18,-10,-11,-22,47,14,0,5,35,25,95,32,33,33,32,29,39,29,48,43,61,31,50,-8,0,-2,0,0,-8,-22,-22,-38,-18,-33,-19,-15,-19,-32,-19,-46,-8,-47,-24,-24,0,-51,0,-37]} 1. Nf3 {[%emt 0:03:06]} Nf6 {[%emt 0:00:24]} 2. b3 {[%emt 0:00:58]} d5 {[%emt 0:01:07]} 3. Bb2 {[%emt 0:00:06]} e6 {[%emt 0:00:03]} 4. e3 {[%emt 0:01:23]} Be7 {[%emt 0:00:06]} 5. c4 {[%emt 0:00:43]} O-O {[%emt 0:00:12]} 6. Nc3 {[%emt 0:00:10]} c5 {[%emt 0:00:27]} 7. cxd5 {[%emt 0:00:25]} Nxd5 {[%emt 0:02:52]} 8. Nxd5 {[%emt 0:00:52]} Qxd5 {[%emt 0:00:14]} 9. Bc4 {[%emt 0:00:16]} Qd8 {[%emt 0:00:25]} 10. Qc2 {[%emt 0:06:43] A13: English Opening: 1...e6.} Nc6 {[%emt 0:03:49]} 11. h4 {[%emt 0:01:17][%cal Of3g5] [#] Black must now prevent Ng5!} Nb4 $146 {[%emt 0:09:10]} ({Predecessor:} 11... h6 12. g4 Bf6 13. Ng5 Bxg5 14. hxg5 Qxg5 15. O-O-O Nb4 16. f4 Qg6 17. Qxg6 fxg6 {½-½ (28) Peralta,F (2561)-Formento,P (2329) Bassano del Grappa 2021}) 12. Qb1 {[%emt 0:00:07] White is slightly better.} f5 {[%emt 0:05:42]} 13. a3 {[%emt 0:20:05]} (13. h5 {feels hotter.} h6 14. Ne5 a6 15. Ng6) 13... Nd5 {[%emt 0:01:10]} 14. d4 {[%emt 0:07:21]} ({White should try} 14. h5 $14) 14... b5 $11 {[%emt 0:05:02]} 15. Bxd5 {[%emt 0:06:14]} Qxd5 {[%emt 0:00:30]} 16. dxc5 {[%emt 0:00:07]} Qxb3 {[%emt 0:03:38]} (16... Qxc5 $11 17. Bd4 Qc7) 17. Bd4 {[%emt 0:03:05]} (17. c6 {seems wilder.} Qd5 18. Qc2 b4 19. O-O) 17... Qxb1+ {[%emt 0:20:13]} 18. Rxb1 {[%emt 0:00:03]} a6 {[%emt 0:00:03]} 19. Ne5 {[%emt 0:01:11]} Bf6 {[%emt 0:07:43]} (19... Rd8 $11) 20. Ke2 {[%emt 0:03:54]} ({White should play} 20. c6 $16) 20... Bxe5 $14 {[%emt 0:01:38]} 21. Bxe5 {[%emt 0:00:04] Hoping for c6.} Bb7 {[%emt 0:00:02] Prevents c6.} 22. f3 {[%emt 0:01:19]} Rfd8 {[%emt 0:01:11]} 23. Bd6 {[%emt 0:05:53]} Kf7 {[%emt 0:01:06]} 24. h5 {[%emt 0:12:51]} Rac8 {[%emt 0:03:15]} 25. Rhd1 {[%emt 0:01:58]} Kf6 {[%emt 0:02:43]} 26. f4 {[%emt 0:02:00]} (26. e4 $14) 26... Kf7 {[%emt 0:05:08]} (26... Bxg2 $2 27. Be5+ Ke7 28. Rg1 Rxc5 29. Rxg2 Rc2+ 30. Kf3 Rxg2 31. Kxg2 $18) 27. Be5 {[%emt 0:00:09]} Rxd1 {[%emt 0:08:13]} (27... Bxg2 $2 28. Rxd8 Rxd8 29. Rg1 $18) 28. Rxd1 $11 {[%emt 0:00:09][%mdl 4096] [#] Endgame Strongly threatening Rd7+. KRB-KRB} Bd5 {[%emt 0:00:09]} 29. Bd4 {[%emt 0:00:20]} Rg8 {[%emt 0:01:35]} (29... Bxg2 $2 30. Rg1 $18) 30. g3 {[%emt 0:08:17]} g5 {[%emt 0:02:27]} 31. Kf2 {[%emt 0:00:05]} gxf4 {[%emt 0:02:15]} 32. exf4 {[%emt 0:00:06]} Ke7 {[%emt 0:01:56]} 33. Rb1 {[%emt 0:09:25][%cal Oa3a4]} Kd7 {[%emt 0:03:25]} 34. h6 {[%emt 0:01:25][%cal Oa3a4]} Rb8 {[%emt 0:06:16]} (34... Be4 $5 {[%cal Re4b1]} 35. Rd1 Kc6 $15) 35. Be5 {[%emt 0:02:08]} Rc8 {[%emt 0:00:57]} 36. Bd4 {[%emt 0:00:07]} Rb8 {[%emt 0:00:06]} 37. Be5 {[%emt 0:02:23]} Rc8 {[%emt 0:00:02]} 38. Bd4 {[%emt 0:00:23] Weighted Error Value: White=0.19 (very precise) /Black=0.19 (very precise)} 1/2-1/2

[Event "US Masters 2022"]
[Site "Charlotte"]
[Date "2022.11.26"]
[Round "6.22"]
[White "Bora, Safal"]
[Black "Zhao, Erick"]
[Result "1-0"]
[ECO "D85"]
[WhiteElo "2446"]
[BlackElo "2243"]
[Annotator "TA"]
[PlyCount "117"]
[EventDate "2022.11.23"]
[EventType "swiss"]
[EventCountry "USA"]
[SourceTitle "playchess.com"]
[Source "ChessBase"]
[SourceQuality "1"]
[TimeControl "5400+30"]

{[%evp 15,117,0,25,0,0,0,0,0,0,0,0,0,20,-12,22,22,32,19,16,25,23,9,8,1,5,0,0,-9,-9,-5,-3,-3,-5,0,0,-17,0,0,0,0,0,0,0,0,0,0,0,0,35,66,80,0,0,0,0,0,0,0,0,0,0,0,0,0,0,0,0,0,0,0,0,0,0,0,12834,12835,12833,12833,12837,12838,12838,12839,12839,12838,12838,0,12839,12839,12840,12840,12841,12840,29980,0,12838,0,29980,29980,29981,29982,29981,29983,29987,29979]} 1. d4 {[%emt 0:00:04]} Nf6 {[%emt 0:03:42]} 2. c4 {[%emt 0:00:06]} g6 {[%emt 0:00:16]} 3. Nc3 {[%emt 0:00:15]} d5 {[%emt 0:00:52]} 4. cxd5 {[%emt 0:00:14]} Nxd5 {[%emt 0:00:07]} 5. Na4 {[%emt 0:00:07]} Bg7 {[%emt 0:04:43]} 6. e4 {[%emt 0:00:11]} Nb6 {[%emt 0:03:25]} 7. Be3 {[%emt 0:00:13]} O-O {[%emt 0:03:29]} 8. Nf3 {[%emt 0:00:20]} Bg4 {[%emt 0:07:36]} 9. Be2 {[%emt 0:00:16] D85: Exchange Grünfeld: Unusual White 7th moves and lines with 7 Nf3.} (9. Nc5 $5 {[%cal Rc5b7]}) 9... Nc6 {[%emt 0:13:24]} 10. d5 {[%emt 0:00:44]} Ne5 {[%emt 0:05:24]} 11. Nxe5 {[%emt 0:01:03] The position is equal.} Bxe2 {[%emt 0:00:36]} 12. Qxe2 {[%emt 0:00:05]} Nxa4 {[%emt 0:02:01]} 13. f4 {[%emt 0:00:09]} c6 {[%emt 0:05:01] [#]} (13... e6 $5 {[%cal Re6d5]}) 14. Rd1 $146 {[%emt 0:28:02][%cal Ba1d1,Bd1d5,Bd5c5][%mdl 32]} (14. b3 $5 {[%cal Rb3a4]} f6 15. Ng4 $14) ({Predecessor:} 14. b3 Nb6 15. dxc6 Bxe5 16. fxe5 bxc6 17. O-O Qc8 18. Bh6 Rd8 19. Rf3 Qg4 20. Raf1 {½-½ (36) Abasov,N (2556)-Vachier Lagrave,M (2785) Chess.com INT 2016}) 14... Qc7 {[%emt 0:05:58]} 15. O-O {[%emt 0:04:32]} cxd5 {[%emt 0:07:44]} 16. Rxd5 {[%emt 0:00:47]} Nb6 {[%emt 0:02:09]} 17. Rc5 {[%emt 0:02:40]} Qd6 {[%emt 0:00:12]} 18. Rfc1 {[%emt 0:08:43]} Qe6 {[%emt 0:02:43]} 19. b3 {[%emt 0:01:51]} Rac8 {[%emt 0:04:08]} 20. Qb5 {[%emt 0:11:00]} (20. Rxc8 {simplifies} Rxc8 21. Rxc8+ Qxc8 22. Nf3) 20... Rxc5 {[%emt 0:02:54]} 21. Qxc5 {[%emt 0:05:02]} Rc8 {[%emt 0:04:36]} (21... f5 {feels hotter.} 22. exf5 Rxf5 23. Qc7 Bxe5 24. fxe5 Nd5) 22. Qd4 {[%emt 0:02:10]} Rxc1+ {[%emt 0:00:11]} 23. Bxc1 {[%emt 0:00:01]} Bxe5 {[%emt 0:00:15]} 24. fxe5 $11 {[%emt 0:00:41][%mdl 4096] Endgame KQB-KQN} h5 {[%emt 0:01:14]} 25. Be3 {[%emt 0:00:53]} Kh7 {[%emt 0:00:42]} (25... Nd7 $5 {[%cal Rd7e5]}) 26. h3 {[%emt 0:00:45]} Nd7 {[%emt 0:06:10]} 27. Qxa7 {[%emt 0:01:20]} Qxe5 {[%emt 0:02:15]} 28. Qd4 {[%emt 0:03:36]} Qe6 {[%emt 0:03:04]} 29. Bg5 {[%emt 0:05:53]} f6 {[%emt 0:04:58]} 30. Be3 {[%emt 0:00:32]} Kg7 {[%emt 0:02:24]} 31. Qb4 {[%emt 0:02:36]} Ne5 {[%emt 0:01:50]} 32. Qxb7 {[%emt 0:01:59]} Nc6 {[%emt 0:00:04]} 33. b4 {[%emt 0:00:56]} ({White should play} 33. a4 $16) 33... Qxe4 {[%emt 0:00:25]} 34. Bf2 {[%emt 0:00:09] [#] Black must now prevent b5.} Qb1+ {[%emt 0:01:21]} (34... Qxb4 35. Qxc6 Qb1+ 36. Kh2 Qxa2 37. Bg3 $16) 35. Kh2 {[%emt 0:00:05]} Qxa2 {[%emt 0:00:02]} (35... Nxb4 $2 36. Qxe7+ Kg8 37. Qe8+ Kg7 38. Bc5 $18) 36. Bg3 {[%emt 0:05:00]} Qe6 {[%emt 0:00:17]} 37. b5 {[%emt 0:00:26]} (37. Bf2 {simplifies} Nd8 38. Qc7 Qd6+ 39. Qxd6 exd6 40. Kg3) 37... Nd4 {[%emt 0:00:16]} 38. b6 {[%emt 0:00:34]} Ne2 {[%emt 0:00:03]} 39. Bf2 {[%emt 0:03:12] [#] Prevents Qe3. Threatens to win with Qc7.} Qe5+ {[%emt 0:00:01]} 40. Kh1 {[%emt 0:04:17] Qc7 is the strong threat.} Qa1+ {[%emt 0:00:02]} 41. Kh2 {[%emt 0:00:04]} Qe5+ {[%emt 0:00:02]} 42. Kh1 $1 {[%emt 0:03:04] And now Qc7 would win.} h4 {[%emt 0:01:02]} 43. Qc7 {[%emt 0:00:59] Hoping for Qxe5.} (43. Bxh4 $2 Qa1+) 43... Qe4 {[%emt 0:00:01] aiming for ...Nf4.} 44. Bc5 {[%emt 0:02:25]} (44. b7 $2 Nf4 $19) 44... Qb1+ $2 {[%emt 0:02:53][%mdl 8192] White now steadily converts the win.} (44... Ng3+ $11 45. Kh2 Nf1+ 46. Kg1 Qb1 47. Qxe7+ Kh6) 45. Kh2 $18 {[%emt 0:00:03]} Ng3 {[%emt 0:00:37]} 46. Qxe7+ {[%emt 0:00:20]} (46. Bxe7 $2 Qh1#) 46... Kh6 {[%emt 0:01:18]} 47. Be3+ {[%emt 0:00:25]} (47. Qxf6 $2 Qh1#) 47... g5 {[%emt 0:00:03]} 48. Qxf6+ {[%emt 0:00:06]} Kh7 {[%emt 0:00:02]} 49. Qf7+ {[%emt 0:01:29]} (49. Qxg5 $2 Qh1#) 49... Kh6 {[%emt 0:00:03]} 50. Qf6+ {[%emt 0:00:04]} Kh7 $1 {[%emt 0:00:03][%csl Gg3][%cal Rb1h1]} 51. Qe7+ {[%emt 0:00:18]} (51. Qxg5 $2 Qh1#) 51... Kg8 {[%emt 0:00:02]} 52. Qxg5+ {[%emt 0:00:23]} Kf7 {[%emt 0:03:50]} 53. Qd5+ {[%emt 0:00:29]} (53. Qxh4 Nf1+ 54. Kg1 Nxe3+ 55. Kh2 Qxb6 $11) 53... Kg7 {[%emt 0:00:00]} 54. Qg5+ {[%emt 0:01:50]} (54. Bd4+ $142 Kf8 55. Qd8+ Kf7 56. Qd7+ Kg6 57. Qg7+ Kh5 58. Qf7+ Qg6 59. Qf3+ Kh6 60. Qf8+ Kh5 61. b7) 54... Kf7 {[%emt 0:00:00][%csl Gg3][%cal Rb1h1]} 55. Qd5+ {[%emt 0:00:05]} ({Worse is} 55. Qxh4 Nf1+ 56. Kg1 Nxe3+ 57. Kh2 Qxb6 $11) (55. Qf4+ $18 Kg6 56. Qd6+ (56. Qxh4 Nf1+ 57. Kh1 Nxe3+ 58. Kh2 Qxb6 $11) 56... Kf7 57. Qd5+ Kg6 58. Qe6+ Kg7 59. Qe7+ Kg6 60. Qe6+ (60. Qxh4 Nf1+ 61. Kh1 Nxe3+ 62. Kh2 Qxb6 $11) 60... Kg7 61. Qe7+ Kg6 62. Qe8+ (62. Qxh4 Nf1+ 63. Kh1 Nxe3+ 64. Kh2 Qxb6 $11) 62... Kf5 63. Qf7+ Ke5 64. Bf4+ Ke4 65. Qc4+ Kf5 66. Bc1) 55... Kg7 {[%emt 0:00:00][%csl Gg3][%cal Rb1h1]} 56. Bd4+ {[%emt 0:01:42] White mates.} Kf8 {[%emt 0:00:00]} 57. Qd8+ {[%emt 0:00:28]} Kf7 {[%emt 0:00:00]} 58. Qd7+ {[%emt 0:00:08]} Kg6 {[%emt 0:03:00]} 59. Qe6+ {[%emt 0:00:22] Weighted Error Value: White=0.68/Black=0.19 (very precise)} 1-0